Cogmind - Beta 13 @@@ ROGUE MODE // 2024.04.11 @ 10:38:34 Player: m1m1c Result: Destroyed by S-27 Virus with Autogun Performance ------------- Evolutions (4) 2000 Regions Visited (6) 1200 Robots Destroyed (24) 120 Value Destroyed (632) 632 Prototype IDs (1) 20 Alien Tech Used (0) 0 Bonus (222) 222 TOTAL SCORE: 4194 Bonus ------- Pacifist 200 High Alert Combat Kills 22 Cogmind --------- Core Integrity 0/850 Matter 203/300 Energy 99/100 System Corruption 0% Temperature Cool (0) Movement Core (50) Location -6/Lower Caves Parts ------- > --- POWER (1) -------- (None) > --- PROPULSION (6) --- (None) > --- UTILITY (6) ------ (None) > --- WEAPON (2) ------- (None) > --- INVENTORY (5) ---- Fission Core Sensor Array Hardened Light Armor Plating EM Pulse Cannon Coil Gun Peak State ------------ > --- POWER ------------ Light Nuclear Core > --- PROPULSION ------- Aluminum Leg Aluminum Leg Aluminum Leg Aluminum Leg > --- UTILITY ---------- Large Storage Unit Sensor Array Improved Targeting Computer Hardened Light Armor Plating Shield Generator > --- WEAPON ----------- Cooled Pulse Rifle Grenade Launcher > --- INVENTORY -------- Light Nuclear Core Sensor Array Light Armor Plating Shield Generator EM Pulse Gun Heavy EM Pulse Gun EM Pulse Cannon EMP Blaster Rocket Launcher [Rating: 22] Favorites ----------- Power Light Nuclear Core Engine Improved Ion Engine Power Core Light Nuclear Core Propulsion Aluminum Leg Leg Aluminum Leg Wheel Armored Wheel Flight Unit Nuclear Pulse Thruster Utility Sensor Array Device Sensor Array Storage Small Storage Unit Processor Improved Targeting Computer Protection Hardened Light Armor Plating Weapon Grenade Launcher Energy Gun Heavy EM Pulse Gun Ballistic Gun Light Assault Rifle Launcher Grenade Launcher Build | -11 -10 -9 -8 -7 -6 -6 ------- Run | Yrd Mat Mat Mat Fac Fac Low Slots Evolved 8 | . . 2 2 2 2 . Power . | . . . . . . . Propulsion 4 | . . 1 1 1 1 . Utility 4 | . . 1 1 1 1 . Weapon . | . . . . . . . Parts Attached 33 | 6 2 7 4 10 4 . Power 6 | 1 . 1 1 1 2 . Engine 3 | 1 . 1 . . 1 . Core 3 | . . . 1 1 1 . Reactor . | . . . . . . . Propulsion 6 | 2 . 1 1 1 1 . Treads . | . . . . . . . Leg 4 | 2 . 1 1 . . . Wheel 1 | . . . . 1 . . Hover . | . . . . . . . Flight 1 | . . . . . 1 . Utility 12 | 1 1 4 2 3 1 . Device 4 | . . 1 . 2 1 . Storage 6 | 1 1 2 1 1 . . Processor 1 | . . 1 . . . . Hackware . | . . . . . . . Protection 1 | . . . 1 . . . Artifact . | . . . . . . . Weapon 9 | 2 1 1 . 5 . . Energy Gun 5 | 1 . 1 . 3 . . Energy Cannon . | . . . . . . . Ballistic Gun 1 | 1 . . . . . . Ballistic Cannon . | . . . . . . . Launcher 3 | . 1 . . 2 . . Special Weapon . | . . . . . . . Impact Weapon . | . . . . . . . Slashing Weapon . | . . . . . . . Piercing Weapon . | . . . . . . . Special Melee Weapon . | . . . . . . . Unidentified Prototypes 1 | . . . . 1 . . Parts Lost 15 | . . . . 13 2 . Power 2 | . . . . 2 . . Propulsion 6 | . . . . 5 1 . Utility 3 | . . . . 2 1 . Weapon 4 | . . . . 4 . . Highest Loss Streak 11 | . . . . 11 2 . To Critical Strikes . | . . . . . . . Average Slot Usage (%) 61 | . 95 93 99 56 5 . Engine 4 | . 14 11 1 . . . Core 2 | . . . 7 3 . . Leg 18 | . 28 26 36 14 . . Device 7 | . . 11 9 11 2 . Storage 7 | . 24 11 9 5 . . Processor 5 | . . 10 9 5 . . Protection 2 | . . . 8 2 . . Energy Gun 6 | . 14 11 9 4 . . Ballistic Gun 1 | . 8 . . . . . Launcher 5 | . 5 11 9 3 . . Naked Turns 389 | . . . . 75 119 195 Heaviest Build 39 | 13 20 19 39 39 10 . Greatest Support 40 | 20 20 30 40 40 6 3 Greatest Overweight (x) 9 | 3 . . . 9 3 . Average Overweight (x) . | . . . . . . . Largest Inventory Capacity 15 | 8 8 15 15 15 5 5 Average Capacity 9 | 7 8 8 14 13 5 5 Most Carried 11 | . 4 8 10 11 5 5 Average Carried 5 | . 1 4 7 8 4 5 Final Capacity 15 | 8 8 8 15 5 5 5 Final Carried 10 | . 4 8 10 5 5 5 Class Distribution -------------------- 100% | Mutant Dominant Class ---------------- Mutant | -10/Materials Mutant | -9/Materials Mutant | -8/Materials Mutant | -7/Factory Mutant | -6/Factory Mutant | -6/Lower Caves Resources | -11 -10 -9 -8 -7 -6 -6 ----------- Run | Yrd Mat Mat Mat Fac Fac Low Matter Collected 650 | 236 . 107 102 179 . 26 Remotely . | . . . . . . . Salvage Created 749 | . . 420 329 . . . Parts 52 | . . 29 23 . . . Haulers Intercepted 1 | . . . 1 . . . Recyclers Shooed 1 | . . . . 1 . . Parts Field Recycled . | . . . . . . . Retrieved Matter . | . . . . . . . Parts Self-Destructed . | . . . . . . . Prevented . | . . . . . . . Kills | -11 -10 -9 -8 -7 -6 -6 ------- Run | Yrd Mat Mat Mat Fac Fac Low Combat Hostiles Destroyed 11 | . . 6 5 . . . Guns 5 | . . 4 1 . . . AOE 6 | . . 2 4 . . . Classes Destroyed 8 | . . 7 1 . . . Worker 1 | . . 1 . . . . Builder 4 | . . 2 2 . . . Hauler 1 | . . . 1 . . . Recycler 3 | . . 2 1 . . . Operator 2 | . . 1 1 . . . Watcher 2 | . . 1 1 . . . Grunt 6 | . . 3 3 . . . Sentry 5 | . . 3 2 . . . Best Kill Streak 7 | . . 5 7 . . . Combat Bots Only 3 | . . 3 2 . . . Max Kills in Single Turn 3 | . . 3 2 . . . Gunslinging . | . . . . . . . Exploded 2 | . . 1 2 . . . Melee . | . . . . . . . Uniques/NPCs Destroyed . | . . . . . . . Combat | -11 -10 -9 -8 -7 -6 -6 -------- Run | Yrd Mat Mat Mat Fac Fac Low Hostile Shots Fired 444 | . . 15 21 240 138 30 Missed 192 | . . 6 10 92 68 16 Damage Taken 2713 | . 30 166 254 1337 721 205 Core 1469 | . . 52 28 535 649 205 Absorbed by Shields 112 | . . . . 82 30 . Core Remaining (%) 80 | 100 100 87 94 23 . . Volleys Fired 39 | . 2 14 16 7 . . Largest 2 | . 2 2 2 2 . . Hottest 75 | . 70 75 75 75 . . Shots Fired 70 | . 4 28 29 9 . . Gun 37 | . 2 14 16 5 . . Cannon . | . . . . . . . Launcher 33 | . 2 14 13 4 . . Special . | . . . . . . . Kinetic . | . . . . . . . Thermal 2 | . . . . 2 . . Explosive 31 | . 2 14 13 2 . . Electromagnetic 37 | . 2 14 16 5 . . Robot Hit Streak 11 | . 1 6 11 3 . . Robot Miss Streak 3 | . 1 3 1 1 . . Penetration Max . | . . . . . . . Secondary Targets . | . . . . . . . Shots Hit Robots 38 | . 1 16 16 5 . . Core Hits 46 | . . 25 19 2 . . Critical Kills . | . . . . . . . Critical Parts Destroyed . | . . . . . . . Critical Strikes 1 | . . . 1 . . . Corrupt 1 | . . . 1 . . . Melee Attacks . | . . . . . . . Impact . | . . . . . . . Slashing . | . . . . . . . Piercing . | . . . . . . . Sneak Attacks . | . . . . . . . Combat Hostiles . | . . . . . . . Follow-up Attacks . | . . . . . . . Damage Inflicted 1600 | . 54 703 730 105 8 . Guns 288 | . . 104 129 55 . . Cannons . | . . . . . . . Explosions 1282 | . 54 591 601 36 . . Melee . | . . . . . . . Ramming 30 | . . 8 . 14 8 . Kinetic . | . . . . . . . Thermal 231 | . . 44 132 55 . . Explosive 1097 | . 54 547 469 27 . . Electromagnetic 242 | . . 104 129 9 . . Impact . | . . . . . . . Slashing . | . . . . . . . Piercing . | . . . . . . . Highest Corruption 5 | . . . . 5 . . Average Corruption 3 | . . . . 3 . . Corruption Purged . | . . . . . . . Corruption Blocked . | . . . . . . . Effects 2 | . . . . 2 . . Energy Discharges 2 | . . . . 2 . . Overload Shots 1 | . . . . 1 . . Overflow Damage 59 | . . 7 52 . . . Projectiles . | . . . . . . . Explosions 59 | . . 7 52 . . . Melee . | . . . . . . . Knockbacks . | . . . . . . . Impact . | . . . . . . . Kinetic . | . . . . . . . Secondary . | . . . . . . . Self-Inflicted Damage 172 | . 30 38 94 6 4 . Shots 6 | . 1 3 2 . . . Rammed 7 | . . . . 5 2 . Targets Rammed 9 | . . 2 . 5 2 . Kicked 2 | . . 2 . . . . Crushed . | . . . . . . . Highest Temperature 108 | . 18 66 108 12 . . Average Temperature 38 | . 10 21 55 8 . . Received Heat Transfer 524 | . . 36 99 305 84 . Siege Activations . | . . . . . . . Robots Corrupted . | . . . . . . . Combat Hostiles . | . . . . . . . Parts Fried . | . . . . . . . Impact Corruptions . | . . . . . . . Robots Melted . | . . . . . . . Combat Hostiles . | . . . . . . . Parts Melted . | . . . . . . . Heat Transferred 237 | . . 50 100 87 . . Parts Sabotaged . | . . . . . . . Parts Stolen . | . . . . . . . Parts Stripped . | . . . . . . . Power Chain Reactions 1 | . . 1 . . . . Alert | -11 -10 -9 -8 -7 -6 -6 ------- Run | Yrd Mat Mat Mat Fac Fac Low Peak Influence 495 | . 38 371 495 253 60 . Initial 224 | . . 15 156 224 . . Average 139 | . 5 151 310 181 19 . Maximum Alert Level 2 | . . 1 2 1 . . Low Security (%) 64 | 100 100 59 28 45 100 . Level 1 30 | . . 40 40 54 . . Level 2 5 | . . . 30 . . . Level 3 . | . . . . . . . Level 4 . | . . . . . . . Level 5 . | . . . . . . . High Security . | . . . . . . . Max Security . | . . . . . . . Squads Dispatched 7 | . . 2 1 3 1 . Investigation . | . . . . . . . Extermination 1 | . . . . 1 . . Reinforcement 4 | . . 2 1 . 1 . Assault . | . . . . . . . Garrison 2 | . . . . 2 . . Intercept . | . . . . . . . Searches Triggered . | . . . . . . . Construction Impeded 1 | . . . . . 1 . Haulers Reinforced . | . . . . . . . Active Scanning Responses . | . . . . . . . Cargo Convoy Interrupts . | . . . . . . . Stealth | -11 -10 -9 -8 -7 -6 -6 --------- Run | Yrd Mat Mat Mat Fac Fac Low Distress Signals 3 | . . 2 . . 1 . Communications Jammed . | . . . . . . . Distress Signals . | . . . . . . . Times Spotted 35 | . 1 9 8 8 6 3 Peak Tracking Total 7 | . 1 3 2 7 4 3 Tactical Retreats 2 | . . . . . 2 . Traps | -11 -10 -9 -8 -7 -6 -6 ------- Run | Yrd Mat Mat Mat Fac Fac Low Traps Triggered 3 | . . . . . 3 . Indirectly . | . . . . . . . Trap Hack Attempts . | . . . . . . . Triggered . | . . . . . . . Disarmed . | . . . . . . . Reprogrammed . | . . . . . . . Reused . | . . . . . . . Traps Extracted . | . . . . . . . Installed . | . . . . . . . Triggered . | . . . . . . . Machines | -11 -10 -9 -8 -7 -6 -6 ---------- Run | Yrd Mat Mat Mat Fac Fac Low Machines Disabled 5 | . . 3 2 . . . Max in Single Turn 2 | . . 2 1 . . . Machines Repaired . | . . . . . . . Machines Dismantled . | . . . . . . . Machines Sabotaged . | . . . . . . . Overloaded Fab Kills . | . . . . . . . Hacking | -11 -10 -9 -8 -7 -6 -6 --------- Run | Yrd Mat Mat Mat Fac Fac Low Machines Accessed 5 | . 3 1 . . 1 . Terminals 5 | . 3 1 . . 1 . Fabricators . | . . . . . . . Repair Stations . | . . . . . . . Recycling Units . | . . . . . . . Scanalyzers . | . . . . . . . Garrison Access . | . . . . . . . Total Hacks 11 | . 6 3 . . 2 . Successful 3 | . 2 1 . . . . Failed 8 | . 4 2 . . 2 . Catastrophic . | . . . . . . . Database Lockouts . | . . . . . . . Manual . | . . . . . . . Terminals 11 | . 6 3 . . 2 . Fabricators . | . . . . . . . Repair Stations . | . . . . . . . Recycling Units . | . . . . . . . Scanalyzers . | . . . . . . . Garrison Access . | . . . . . . . Terminal Hacks 3 | . 2 1 . . . . Alert Level 1 | . . 1 . . . . Hauler Manifests 1 | . 1 . . . . . Zone Layout 1 | . 1 . . . . . Fabricator Hacks . | . . . . . . . Repair Station Hacks . | . . . . . . . Recycling Unit Hacks . | . . . . . . . Scanalyzer . | . . . . . . . Garrison Access Hacks . | . . . . . . . Unauthorized Hacks . | . . . . . . . Terminals . | . . . . . . . Fabricators . | . . . . . . . Repair Stations . | . . . . . . . Recycling Units . | . . . . . . . Scanalyzers . | . . . . . . . Garrison Access . | . . . . . . . Data Cores Recovered 1 | . . . 1 . . . Used . | . . . . . . . Hacking Detections 4 | . 2 1 . . 1 . Full Trace Events . | . . . . . . . Feedback Events . | . . . . . . . Feedback Blocked . | . . . . . . . Robot Schematics Acquired . | . . . . . . . Robots Built . | . . . . . . . Authchips . | . . . . . . . Time . | . . . . . . . Total Robot Build Rating . | . . . . . . . Part Schematics Acquired . | . . . . . . . Parts Built . | . . . . . . . Authchips . | . . . . . . . Time . | . . . . . . . Total Part Build Rating . | . . . . . . . Parts Repaired . | . . . . . . . Time . | . . . . . . . Parts Recycled . | . . . . . . . Recycled Matter . | . . . . . . . Retrieved Matter . | . . . . . . . Retrieved Components . | . . . . . . . Parts Scanalyzed . | . . . . . . . Part Schematics Acquired . | . . . . . . . Parts Damaged . | . . . . . . . Bothacking | -11 -10 -9 -8 -7 -6 -6 ------------ Run | Yrd Mat Mat Mat Fac Fac Low Used RIF Installer . | . . . . . . . Robots Hacked . | . . . . . . . Non-combat . | . . . . . . . Combat . | . . . . . . . Robot Hacks Applied . | . . . . . . . Relay Couplers Released . | . . . . . . . Fabnet Peak Effective % . | . . . . . . . Robots Rewired . | . . . . . . . Allies Hacked . | . . . . . . . Hacks Repelled . | . . . . . . . Allies | -11 -10 -9 -8 -7 -6 -6 -------- Run | Yrd Mat Mat Mat Fac Fac Low Total Allies 3 | . . . . . 3 . Largest Group 3 | . . . . . 3 . Highest-Rated Group 93 | . . . . . 93 . Highest-Rated Ally 31 | . . . . . 31 . Total Orders . | . . . . . . . Ally Attacks 6 | . . . . . 6 . Total Damage 128 | . . . . . 128 . Kills . | . . . . . . . Allies Corrupted . | . . . . . . . Allies Melted . | . . . . . . . Intel | -11 -10 -9 -8 -7 -6 -6 ------- Run | Yrd Mat Mat Mat Fac Fac Low Robot Analysis Total . | . . . . . . . Derelict Logs Recovered . | . . . . . . . Drone Launches . | . . . . . . . Drone Recoveries . | . . . . . . . Exploration | -11 -10 -9 -8 -7 -6 -6 ------------- Run | Yrd Mat Mat Mat Fac Fac Low Turns Passed 1887 | 76 205 387 301 423 300 195 Spaces Moved 2061 | 49 161 272 206 371 613 389 Core 806 | 13 . . . 141 263 389 Treads . | . . . . . . . Legs 824 | 36 161 272 206 149 . . Wheels 81 | . . . . 81 . . Hover . | . . . . . . . Flight 350 | . . . . . 350 . Fastest Speed 40 | 50 120 120 120 50 40 50 Average Speed 80 | 137 120 120 120 97 44 50 Slowest Speed 500 | 200 120 120 120 500 200 50 Overloaded Moves . | . . . . . . . Propulsion Burnouts . | . . . . . . . Robots Hopped 3 | . . . . . 3 . Cave-ins Triggered . | . . . . . . . Exploration Rate (%) 21 | 5 25 24 23 7 10 53 Regions Visited 6 Branch Regions 1 Pre-discovered Areas . | . . . . . . . Known Exits Taken . | . . . . . . . Unknown Exits Taken 6 | 1 1 1 1 1 1 . Scrap Searched 2 | . . . . . . 2 Spaces Dug . | . . . . . . . Terrain Destroyed 227 | . 16 98 100 13 . . Melee . | . . . . . . . Projectile . | . . . . . . . AOE 227 | . 16 98 100 13 . . Terrain Rammed . | . . . . . . . Walls Destroyed . | . . . . . . . Machines Disabled . | . . . . . . . Actions | -11 -10 -9 -8 -7 -6 -6 --------- Run | Yrd Mat Mat Mat Fac Fac Low Total 2204 | 54 168 302 230 423 638 389 Wait 27 | . . . . 27 . . Move 2049 | 48 160 271 205 370 606 389 Hop 3 | . . . . . 3 . Pick Up 19 | . 4 5 4 1 5 . Fast Attach 15 | 6 1 2 . 2 4 . Attach 10 | . . 1 2 7 . . Detach 2 | . . . . 2 . . Swap 8 | . 1 4 2 1 . . Drop 12 | . . 3 1 1 7 . Fire 39 | . 2 14 16 7 . . Melee . | . . . . . . . Ram 7 | . . . . 5 2 . Kick 2 | . . 2 . . . . Crush . | . . . . . . . Escape Stasis 11 | . . . . . 11 . Rewire . | . . . . . . . Trap . | . . . . . . . Miscellaneous . | . . . . . . . Route ------- -11/Scrapyard -10/Materials -9/Materials -8/Materials -7/Factory -6/Factory -6/Lower Caves History --------- Turn | Location | Event 13 | -11/Scrapyard | Discovered new exit (range 16) 77 | -11/Scrapyard | Entered Materials 214 | -10/Materials | Discovered new exit (range 16) 282 | -10/Materials | Entered another Materials area 282 | -9/Materials | Evolved 2 slots: Propulsion x1, Utility x1 326 | -9/Materials | Build established: Mutant 616 | -9/Materials | Discovered new exit (range 11) 669 | -9/Materials | Entered another Materials area 669 | -8/Materials | Evolved 2 slots: Propulsion x1, Utility x1 952 | -8/Materials | Discovered new exit (range 7) 970 | -8/Materials | Entered Factory 970 | -7/Factory | Evolved 2 slots: Propulsion x1, Utility x1 973 | -7/Factory | Discovered new exit (range 9) 1239 | -7/Factory | Garrison activated, responded to threat 1262 | -7/Factory | Lost 11 parts (2p4n2u3w) 1318 | -7/Factory | Released all parts (4) 1325 | -7/Factory | Core integrity fell below 50% 1393 | -7/Factory | Entered another Factory area 1393 | -6/Factory | Evolved 2 slots: Propulsion x1, Utility x1 1468 | -6/Factory | Allied Derelicts emerged from ambush trap array 1652 | -6/Factory | Core integrity fell below 50% 1679 | -6/Factory | Discovered new exit (range 16) 1693 | -6/Factory | Entered Lower Caves 1849 | -6/Lower Caves | Core integrity fell below 20% 1888 | -6/Lower Caves | Destroyed by S-27 Virus with Autogun Last Messages --------------- Penetrated by Slug. R-10 Processor collects Wheel. Penetrated by Slug. Slammed into U-05 Engineer. ALERT: Construction progress impeded, dispatching reinforcements to local area. EXIT=FOUND LOCATION=UNKNOWN GOAL=ESCAPE Searching scrap... Found Machine Analyzer. Found Terrain Scan Processor. Found Hvy. Plasma Cannon. Found Hpw. Tractor Beam. Found 26 Matter. Acquired 26 matter. Searching scrap... Found 37 Matter. Found Reaction Control System. Found 23 Matter. Map ----- +----------------------------------------------------+ | | | | | | | | | ?????????????????????????????????????????????????? | | ?????????????????????????????????????????????????? | | ?????????????????????????????????????????????????? | | ?????????????????????????????????????????????????? | | ?????????????????????????????????????????????????? | | ?????????????????????????????????????????????????? | | ?????????????????????????????????????????????????? | | ?????????????????????????????????????????????????? | | ??????##?????????????????????????????????????????? | | ??????"""????????????????????????????????????????? | | ?????"" "????????????????????????????????????????? | | ?????"" ""???????????????????????????????????????? | | ?????#" "#???????????????????????????????????????? | | ????##" "##??????????????????????????????????????? | | ???##"" ""##????###?????###??????????????????????? | | ??## ##???# #????## ##?????????????????????? | | ??# ##### #???## ##????????????????????? | | ??# ## #?### #????????????????????? | | ???# ### #????? #???????????? | | ????# ## #### #???????????? | | ????# #??????????? | | ????# s @ #?????????? | | ????# s s ########???????????????? | | ????## ## ######## #??????????????????????? | | ?????## ####??????## ##??????????????????????? | | ??????# ##?????????# ##???????????????????????? | | ??????## ##???????? #????????????????????????? | | ?####### ##?????? #????????????????????????? | | ?# #????? ####????????????????????????? | | ?# ##???# #???????????????????????????? | | ?# ####### # ##### #???????????????????????????? | | ?????????# # ## #???????????????????????????? | | ?????????# # # ###?????????????????????????? | | ?????????# ##????????????????????????? | | ????????## ## ?????????????????????? | | ????????# ????????????????????? | | ????????# ## ????????????????????????? | | ????????## ##??????????????????????????? | | ?????????# ## ##?####?????????????????????? | | ????????## ## #?# ##????????????????????? | | ????????# ## #?# ##???????????????????? | | ??????## #?# ##??????????????????? | | ????# ### ##?????????????????? | | ? ### # # ## ##????????????????? | | ?# ## ## ###??????????????? | | ?# # # #??????????????? | +----------------------------------------------------+ Best States ------------- Heat Dissipation 37 Energy Generation 14 Energy Capacity 265 Matter Stores 276 Matter Capacity 300 Sight Range 16 Robot Scan Range 14 Terrain Scan Density 10 ECM Strength 1 Cloak Strength 2 Armor Coverage 150 Evasion (%) 62 Targeting Accuracy 6 Item Schematics ----------------- None Robot Schematics ------------------ None Fabricated ------------ Nothing Alien Tech Used ----------------- None Achievements -------------- None Challenges ------------ None Game ------ Seed StormBottomlessMonowheel Manual? 0 Play Time 00:21:05 Cumulative 9.4 hours Start 2024.04.11 @ 10:18:38 End 2024.04.11 @ 10:38:34 Sessions 1 Manual Loads 0 Difficulty Rogue Special Mode None Game No. 37 Rogue 37 Adventurer 0 Explorer 0 Win Type - Total 0 Types 0/0/0/0/0/0/0/0/0 Lore% 11 Gallery% 14 Achievement% 13 Wizard Run 0 Options --------- Layout 1 ASCII 1 Keyboard 0 Movement Arrows Keybinds 0 Fullscreen 1 Font 18/SmallcapsGlow Map View 50x40 Zoom Use 0% Tactical HUD 0 Map Filters NONE Filters NONE Steam 1 RUN: 35a6b6ba-d34d-4032-8cf3-6a948e97bb2d